bitfinex-derivatives/quotes_SOLF0:USTF0_20250202
["timestamp","ask_amount","ask_price","bid_price","bid_amount"]
[1738511046855,0.03433891,211.58,211.53,0.35490866]
[1738511047246,9.31615776,211.58,211.53,0.35490866]
[1738511047451,4.7288,211.54,211.53,0.35490866]
[1738511047846,4.7298,211.5,211.42,4.7315]
[1738511048151,9.28181885,211.55,211.42,9.28181885]
[1738511048755,14.87983737,211.58,211.4,206.87983737]
[1738511048955,0.03431622,211.51,211.46,0.03123691]
[1738511050856,4.76391622,211.51,211.46,0.03123691]
[1738511051858,0.03431622,211.51,211.46,0.03123691]
[1738511052553,0.03431622,211.51,211.5,4.7297]
[1738511052758,3.0413,211.62,211.48,14.87983737]
[1738511053152,3.0413,211.62,211.47,3.0359]
[1738511053351,14.87983737,211.6,211.47,1.5252]
[1738511053555,4.7293,211.53,211.45,4.7306]
[1738511053754,14.87983737,211.56,211.41,1.5107]
[1738511053958,14.87983737,211.56,211.47,0.03339816]
[1738511053959,0.03127255,211.51,211.47,0.03339816]
[1738511054758,4.7302,211.48,211.47,0.03339816]
[1738511056362,7.6352,211.5,211.47,0.03339816]
[1738511056761,2.9053,211.5,211.47,1.15339816]
[1738511057757,4.73,211.49,211.47,1.15339816]
[1738511058869,4.7302,211.48,211.47,1.15339816]
[1738511059368,2.9053,211.5,211.47,1.15339816]
[1738511059570,7.6352,211.5,211.47,1.15339816]
[1738511059863,2.9053,211.5,211.47,1.15339816]
[1738511060269,4.7301,211.49,211.47,1.15339816]
[1738511061068,4.7302,211.48,211.47,1.15339816]
[1738511064077,0.03127255,211.51,211.47,1.15339816]
[1738511065370,4.7302,211.48,211.47,1.15339816]
[1738511066974,4.7302,211.49,211.47,1.15339816]
[1738511067172,0.03127255,211.51,211.47,1.15339816]
[1738511068673,4.7302,211.48,211.47,1.15339816]
[1738511069676,4.7316,211.42,211.36,1.4603]
[1738511070580,4.7316,211.42,211.32,4.7336]
[1738511070780,4.76362245,211.41,211.37,0.0331602]
[1738511073385,4.7322,211.39,211.37,0.0331602]
[1738511073685,0.03182245,211.41,211.37,0.0331602]
[1738511075786,4.7324,211.38,211.37,0.0331602]
[1738511077186,4.7324,211.38,211.29,6.1456]
[1738511077187,4.7333,211.34,211.29,1.4112]
[1738511077386,4.7333,211.34,211.25,1.4099]
[1738511077585,9.31003906,211.33,211.29,6.52]
[1738511077981,4.7342,211.31,211.29,6.52]
[1738511078182,9.31003906,211.3,211.19,1.5354]
[1738511078492,4.7358,211.23,211.16,197.68114289]
[1738511078792,9.31003906,211.24,211.16,196.26644289]
[1738511078993,9.31003906,211.24,211.16,194.85654289]
[1738511079185,9.31003906,211.21,211.16,194.85654289]
[1738511079390,9.31003906,211.18,211.17,169.66729158]
[1738511079794,9.31003906,211.18,211.17,169.69759133]
[1738511079995,9.31003906,211.18,211.17,29.19014187]
[1738511080293,9.31003906,211.18,211.16,194.85654289]
[1738511080489,4.7371,211.17,211.16,139.16856807]
[1738511080796,4.7371,211.17,211.16,116.85852794]
[1738511080994,18.9171,211.17,211.16,70.02038938]
[1738511081191,18.9171,211.17,211.16,38.64848938]
[1738511081496,23.49003906,211.18,211.14,0.03441712]
[1738511081699,9.31003906,211.15,210.98,197.22501672]
[1738511081995,9.31003906,211.09,210.98,195.69141672]
[1738511082191,14.18,211.07,210.92,106.6926967]
[1738511082388,9.31003906,210.93,210.92,106.6926967]
[1738511082788,3.3,210.94,210.92,106.6926967]
[1738511084800,0.03563827,210.95,210.9,0.02875372]
[1738511085298,0.03563827,210.95,210.91,4.7429]
[1738511085599,6.34455918,210.98,210.9,0.02875372]
[1738511086196,105.96440668,210.94,210.9,0.02875372]
[1738511086393,101.26640668,210.94,210.9,0.02875372]
[1738511086593,98.9477984,210.94,210.9,0.02875372]
[1738511087989,77.05098929,210.93,210.83,4.7447]
[1738511088194,77.05098929,210.93,210.76,183.90700867]
[1738511089297,0.03518524,210.87,210.82,0.03215336]
[1738511089497,0.03518524,210.87,210.76,155.58738678]
[1738511090190,0.03518524,210.87,210.83,4.7446]
[1738511090397,0.03518524,210.87,210.76,155.58738678]
[1738511090598,0.03518524,210.87,210.85,4.7442]
[1738511090796,77.05098929,210.93,210.79,14.96407204]
[1738511090993,77.05098929,210.86,210.79,14.96407204]
[1738511091298,77.05098929,210.86,210.81,14.96407204]
[1738511091597,74.70078929,210.86,210.81,14.96407204]
[1738511091796,74.70078929,210.86,210.85,4.7443]
[1738511092096,18.75488888,210.87,210.85,4.7443]
[1738511092598,18.75488888,210.87,210.82,1.5418]
[1738511093296,18.75488888,210.87,210.85,4.7442]
[1738511093497,18.78768076,210.87,210.82,1.57703655]
[1738511094499,18.78768076,210.87,210.85,4.7442]
[1738511095103,0.03279188,210.87,210.85,4.7442]
[1738511096696,0.03279188,210.87,210.83,4.7447]
[1738511097391,0.03279188,210.87,210.82,0.03523655]
[1738511098597,4.77679188,210.87,210.82,0.03523655]
[1738511098803,0.03279188,210.87,210.82,0.03523655]
[1738511099300,4.7446,210.84,210.82,0.03523655]
[1738511100299,14.96407204,210.83,210.67,2.9534]
[1738511100495,14.96407204,210.79,210.67,2.9534]
[1738511101404,17.95067204,210.83,210.67,2.9534]
[1738511101598,0.03105301,210.75,210.71,0.03288915]
[1738511103204,14.96407204,210.74,210.71,0.03288915]
[1738511103505,4.747,210.73,210.71,0.03288915]
[1738511103705,14.96407204,210.74,210.55,1.4402]
[1738511103900,14.96407204,210.69,210.55,1.4402]
[1738511104106,19.71207204,210.69,210.59,4.7501]
[1738511104302,19.71207204,210.69,210.55,1.4402]
[1738511104303,14.96407204,210.69,210.55,1.4402]
[1738511104608,4.7482,210.68,210.59,4.7502]
[1738511104811,14.96407204,210.69,210.55,1.4402]
[1738511105006,0.03337985,210.64,210.55,1.4402]
[1738511105203,4.78247985,210.64,210.55,4.751]
[1738511105609,0.03337985,210.64,210.49,0.81873332]
[1738511105809,4.7495,210.62,210.53,4.7514]
[1738511106312,0.03379609,210.6,210.49,0.81873332]
[1738511106505,0.03379609,210.6,210.53,4.7515]
[1738511106707,0.03379609,210.6,210.49,0.81873332]
[1738511107003,0.03379609,210.6,210.54,4.7512]
[1738511107208,0.03379609,210.6,210.49,0.81873332]
[1738511107705,0.03379609,210.6,210.55,4.751]
[1738511108004,18.22407204,210.69,210.54,14.96407204]
[1738511108204,3.26,210.69,210.55,1.476]
[1738511108405,14.96407204,210.73,210.55,1.476]
[1738511108705,14.96407204,210.73,210.58,14.96407204]
[1738511108901,19.71117204,210.73,210.59,1.4221]
[1738511109402,0.03247764,210.68,210.64,0.03396906]
[1738511109610,0.03247764,210.68,210.66,4.7485]
[1738511110107,0.03247764,210.68,210.64,0.03396906]
[1738511110108,14.96407204,210.77,210.64,0.03396906]
[1738511110308,4.7466,210.75,210.64,0.03396906]
[1738511110511,14.96407204,210.77,210.59,1.4221]
[1738511111310,0.03145486,210.7,210.66,0.03374491]
[1738511111706,14.96407204,210.69,210.66,0.03374491]
[1738511112214,17.96387204,210.69,210.66,0.03374491]
[1738511112611,17.96387204,210.69,210.56,4.7507]
[1738511112809,14.96407204,210.65,210.51,1.4467]
[1738511113510,19.45767204,210.69,210.51,1.4467]
[1738511113711,24.20577204,210.69,210.6,4.7499]
[1738511113911,0.03535571,210.62,210.6,4.7499]
[1738511114206,4.4936,210.69,210.54,14.96407204]
[1738511114514,0.03187731,210.63,210.59,0.03457635]
[1738511114916,3.28,210.7,210.59,0.03457635]
[1738511115116,18.24407204,210.77,210.59,0.03457635]
[1738511115415,18.24407204,210.77,210.58,14.96407204]
[1738511115615,4.7467,210.75,210.63,4.7491]
[1738511115911,18.24407204,210.77,210.58,14.96407204]
[1738511116114,0.03426551,210.71,210.67,4.78482484]
[1738511116717,0.03426551,210.71,210.67,0.03652484]
[1738511119508,14.96407204,210.69,210.67,0.03652484]
[1738511119706,14.96407204,210.69,210.56,1.5515]
[1738511120109,14.96407204,210.69,210.55,1.4414]
[1738511120311,1.5279,210.68,210.55,1.4414]
[1738511120714,1.5279,210.68,210.54,14.96407204]
[1738511120910,0.0363916,210.64,210.59,0.02992882]
[1738511121113,0.0363916,210.64,210.62,4.7494]
[1738511121317,9.16e-05,210.64,210.62,4.7494]
[1738511122616,9.16e-05,210.64,210.63,2.9115]
[1738511122815,9.16e-05,210.64,210.63,4.3748]
[1738511123115,1.4302,210.79,210.63,4.3748]
[1738511123316,1.4302,210.79,210.73,4.747]
[1738511123616,1.4302,210.79,210.63,4.3748]
[1738511123820,4.7464,210.76,210.7,4.7476]
[1738511124115,1.4302,210.79,210.63,4.3748]
[1738511124417,0.03353386,210.75,210.71,0.03349284]
[1738511125817,4.7472,210.72,210.71,0.03349284]
[1738511126218,3.28,210.73,210.57,159.77920849]
[1738511126414,4.7486,210.67,210.57,159.77920849]
[1738511126718,16.43027204,210.71,210.57,159.77920849]
[1738511127419,14.96407204,210.67,210.57,159.77920849]
[1738511127615,4.7491,210.64,210.62,0.03282758]
[1738511127815,4.7491,210.64,210.5,16.42517204]
[1738511128110,4.7491,210.64,210.61,0.03282758]
[1738511128313,4.7491,210.64,210.5,16.42517204]
[1738511128523,4.7491,210.64,210.6,0.03282758]
[1738511128820,1.477,210.66,210.5,1.4611]
[1738511128821,30.61615861,210.66,210.5,1.4611]
[1738511129120,0.03507975,210.64,210.6,0.03282758]
[1738511129423,0.03507975,210.64,210.6,0.52282758]
[1738511131222,0.03507975,210.64,210.62,4.7494]
[1738511132319,27.67045861,210.8,210.69,4.7478]
[1738511132520,32.27415861,210.8,210.69,4.7478]
[1738511132720,4.746,210.78,210.7,4.7476]
[1738511132923,32.27415861,210.8,210.63,24.39045861]
[1738511133125,7.8837,210.8,210.63,24.39045861]
[1738511133320,4.7457,210.79,210.71,4.7473]
[1738511133524,0.03329299,210.74,210.69,0.03506564]
[1738511134023,0.03329299,210.74,210.72,4.7472]
[1738511134526,0.03329299,210.74,210.69,0.03506564]
[1738511135425,4.7472,210.73,210.69,0.03506564]
[1738511135818,0.03329299,210.74,210.69,0.03506564]
[1738511136025,1.4225,210.72,210.69,2.78506564]
[1738511137628,0.03329299,210.74,210.69,2.78506564]
[1738511138723,4.78009299,210.74,210.69,2.78506564]
[1738511141129,0.03329299,210.74,210.69,2.78506564]
[1738511141329,4.747,210.73,210.69,2.78506564]
[1738511141931,4.7473,210.72,210.69,2.78506564]
[1738511142824,4.78029299,210.74,210.69,2.78506564]
[1738511143032,0.03329299,210.74,210.69,2.78506564]
[1738511143529,24.39045861,210.72,210.69,0.43536564]
[1738511143725,1.4803,210.71,210.69,0.43536564]
[1738511144120,4.7477,210.7,210.69,0.43536564]
[1738511144322,1.4803,210.71,210.6,0.49]
[1738511144526,1.4803,210.71,210.67,0.03284169]
[1738511144823,0.03267835,210.71,210.67,0.03284169]
[1738511145229,0.03267835,210.71,210.7,4.7477]
[1738511145931,1.4803,210.83,210.72,4.7472]
[1738511146124,3.0031,210.83,210.68,1.4229]
[1738511146322,4.7457,210.79,210.72,4.7472]
[1738511146525,3.0031,210.83,210.68,1.4229]
[1738511147025,0.03399481,210.77,210.72,0.03087632]
[1738511147826,0.03399481,210.77,210.73,0.49]
[1738511148025,4.7466,210.75,210.73,0.49]
[1738511148431,24.39045861,210.76,210.73,0.49]
[1738511148627,4.747,210.73,210.72,0.03087632]
[1738511149628,1.4705,210.74,210.72,0.03087632]
[1738511150428,6.2173,210.74,210.72,0.03087632]
[1738511151825,0.03399481,210.77,210.72,0.03087632]
[1738511152632,4.78019481,210.77,210.72,0.03087632]
[1738511153033,0.03399481,210.77,210.72,0.03087632]
[1738511153333,4.747,210.73,210.72,0.03087632]
[1738511154332,4.7467,210.75,210.72,0.03087632]
[1738511154532,1.48529481,210.77,210.72,0.03087632]
[1738511156336,14.99304661,210.74,210.59,14.99304661]
[1738511156634,14.99304661,210.74,210.6,4.7498]
[1738511156834,4.7477,210.71,210.59,14.99304661]
[1738511157135,14.99304661,210.74,210.59,14.99304661]
[1738511157437,14.99304661,210.74,210.62,4.7494]
[1738511157631,0.03315951,210.69,210.64,0.03464372]
[1738511158839,0.03315951,210.69,210.66,4.7485]
[1738511159140,0.03315951,210.69,210.64,0.03464372]
[1738511159337,0.03315951,210.69,210.68,4.7481]
[1738511159635,0.03315951,210.69,210.64,0.03464372]
[1738511161042,4.7468,210.74,210.64,15.02769033]
[1738511161341,4.7554,210.8,210.65,2.8935]
[1738511161542,14.99304661,210.77,210.6,14.99304661]
[1738511161739,14.99304661,210.73,210.58,2.9325]
[1738511161943,1.5032,210.72,210.58,2.9325]
[1738511162143,14.99304661,210.69,210.57,1.4823]
[1738511162442,0.03640556,210.67,210.63,0.03379737]
[1738511162941,4.749,210.64,210.63,0.03379737]
[1738511163535,1.47790556,210.67,210.63,0.03379737]
[1738511164443,4.7489,210.65,210.63,0.03379737]
[1738511164643,14.99304661,210.65,210.51,2.9325]
[1738511164839,14.99304661,210.65,210.51,1.4347]
[1738511165140,14.99304661,210.65,210.49,0.81873332]
[1738511165842,0.03384042,210.59,210.55,0.03380171]
[1738511168542,0.03384042,210.59,210.57,4.7506]
[1738511168743,1.4415,210.67,210.55,0.03380171]
[1738511168940,18.23304661,210.73,210.58,14.99304661]
[1738511169147,3.24,210.73,210.58,14.99304661]
[1738511169846,3.24,210.73,210.67,4.7483]
[1738511170046,4.536e-05,210.68,210.67,4.7483]
[1738511170246,1.5257,210.79,210.62,14.99304661]
[1738511170448,1.5257,210.79,210.67,4.7482]
[1738511170642,1.5257,210.79,210.63,1.4958]
[1738511171250,0.03632423,210.73,210.69,0.030559]
[1738511173051,4.78352423,210.73,210.69,0.030559]
[1738511173650,0.03632423,210.73,210.69,0.030559]
[1738511175356,0.03632423,210.73,210.71,4.7474]
[1738511175844,2.423e-05,210.73,210.71,4.7474]
[1738511176043,14.18,210.95,210.69,0.030559]
[1738511176249,3.0017,210.86,210.68,1.4906]
[1738511176553,14.99304661,210.83,210.68,1.4906]
[1738511176748,4.7452,210.82,210.74,4.7468]
[1738511176944,14.99304661,210.83,210.68,1.4906]
[1738511177153,14.99304661,210.79,210.76,0.03120283]
[1738511177754,4.7459,210.78,210.76,0.03120283]
[1738511177954,14.99304661,210.79,210.76,0.03120283]
[1738511178257,4.7464,210.76,210.68,4.7479]
[1738511178453,3.24,210.78,210.63,3.0053]
[1738511178755,3.24,210.78,210.67,4.7483]
[1738511178954,3.24,210.78,210.63,3.0053]
[1738511179357,3.24,210.78,210.74,4.7467]
[1738511179554,19.73794661,210.83,210.66,14.99304661]
[1738511179756,0.03544163,210.78,210.74,0.03352588]
[1738511181450,0.03544163,210.78,210.76,4.7463]
[1738511181650,0.03544163,210.78,210.74,0.03352588]
[1738511184355,0.03544163,210.78,210.77,4.7461]
[1738511184959,0.03544163,210.78,210.74,0.03352588]
[1738511185161,0.03544163,210.78,210.75,4.7463]
[1738511185461,0.03544163,210.78,210.74,0.03352588]
[1738511185660,0.03544163,210.78,210.77,4.7461]
[1738511188259,3.0017,210.86,210.74,0.03352588]
[1738511188562,2.9712,210.93,210.77,14.99304661]
[1738511188759,2.9712,210.93,210.78,2.9456]
[1738511188961,9.4722,210.95,210.89,4.7434]
[1738511189264,3.22,211.02,210.81,14.99304661]
[1738511189457,0.03024433,210.94,210.9,4.77889824]
[1738511189661,0.03024433,210.94,210.9,0.03579824]
[1738511190654,4.7426,210.93,210.9,0.03579824]
[1738511190859,0.03024433,210.94,210.9,0.03579824]
[1738511194060,0.03024433,210.94,210.92,4.7427]
[1738511194267,2.8315,211.05,210.9,0.03579824]
[1738511194460,2.8315,211.05,210.93,14.99304661]
[1738511195262,4.7391,211.09,210.93,14.99304661]
[1738511195457,0.03465891,211.01,210.97,15.0277276]
[1738511195661,5.891e-05,211.01,210.97,15.0277276]
[1738511195856,2.9849,211.11,210.97,14.99304661]
[1738511196962,0.03427353,211.06,211.02,0.0314582]
[1738511197663,7.353e-05,211.06,211.04,4.7399]
[1738511198862,19.42044661,211.21,211.09,4.7387]
[1738511199065,19.42044661,211.21,211.07,159.77920849]
[1738511199263,4.4274,211.21,211.07,159.77920849]
[1738511199462,4.7361,211.22,211.1,159.77920849]
[1738511199663,3.22,211.27,211.12,159.77920849]
[1738511199964,4.7352,211.26,211.25,159.77920849]
[1738511200464,3.22,211.27,211.2,159.77920849]
[1738511200664,0.03150187,211.28,211.2,159.77920849]
[1738511200867,4.7354,211.25,211.2,159.77920849]
[1738511201061,0.03150187,211.28,211.21,0.03187214]
[1738511201366,3.0061,211.29,211.21,0.03187214]
[1738511201567,4.7349,211.28,211.21,0.03187214]
[1738511201867,0.03478417,211.27,211.21,0.03187214]
[1738511202458,0.03478417,211.27,211.21,161.37194978]
[1738511202668,0.03478417,211.27,211.21,166.10814978]
[1738511203272,0.03478417,211.27,211.21,161.37194978]
[1738511203871,14.99304661,211.31,211.22,28.95873481]
[1738511204362,14.99304661,211.31,211.22,190.29881245]
[1738511204760,4.7344,211.3,211.22,190.29881245]
[1738511204970,0.03543737,211.29,211.22,190.29881245]
[1738511205171,14.99304661,211.33,211.22,28.95873481]
[1738511205469,3.22,211.34,211.22,28.95873481]
[1738511205867,3.22,211.38,211.22,28.95873481]
[1738511206064,3.22,211.38,211.22,30.37433481]
[1738511206565,0.03070172,211.32,211.28,0.03505177]
[1738511207671,4.7343,211.3,211.28,0.03505177]
[1738511207871,1.05587258,211.34,211.28,0.03505177]
[1738511208066,14.99304661,211.38,211.28,0.03505177]
[1738511208666,14.99304661,211.43,211.28,0.03505177]
[1738511208873,2.9379,211.57,211.33,14.99304661]
[1738511209170,2.9379,211.57,211.41,0.03620536]
[1738511209572,14.99304661,211.43,211.37,161.34007764]
[1738511210676,4.7323,211.39,211.31,161.34007764]
[1738511210972,4.7323,211.39,211.38,0.03351268]
[1738511211274,0.03131361,211.41,211.33,0.03458712]
[1738511211973,4.76321361,211.41,211.33,0.03458712]
[1738511212168,0.03131361,211.41,211.33,0.03458712]
[1738511212375,1.5092,211.42,211.34,28.95873481]
[1738511212574,1.5092,211.42,211.38,159.88266248]
[1738511212770,3.28,211.45,211.38,159.88266248]
[1738511213475,3.28,211.45,211.34,28.95873481]
[1738511213676,0.03322756,211.44,211.39,0.03221791]
[1738511214579,4.7314,211.43,211.39,0.03221791]
[1738511214780,0.03322756,211.44,211.39,0.03221791]
[1738511215079,14.99304661,211.43,211.39,0.03221791]
[1738511215882,4.7319,211.41,211.39,0.03221791]
[1738511217679,4.7313,211.43,211.39,0.03221791]
[1738511218183,0.03322756,211.44,211.39,0.03221791]
[1738511219483,4.732,211.4,211.39,0.03221791]
[1738511220282,0.03322756,211.44,211.39,0.03221791]
[1738511220283,4.76452756,211.44,211.39,0.03221791]
[1738511220483,0.03322756,211.44,211.39,0.03221791]
[1738511220683,4.732,211.4,211.39,0.03221791]
[1738511220981,14.99304661,211.41,211.27,1.4624]
[1738511221379,4.7323,211.39,211.3,4.7341]
[1738511221982,14.99304661,211.41,211.27,1.4624]
[1738511222182,0.03434046,211.37,211.32,0.0329503]
[1738511222583,0.03434046,211.37,211.32,4.7667503]
[1738511222985,0.03434046,211.37,211.32,0.0329503]
[1738511223187,0.03434046,211.37,211.32,15.02599691]
[1738511223387,14.99304661,211.53,211.36,14.99304661]
[1738511223686,4.7297,211.51,211.43,4.7313]
[1738511223882,1.4605,211.56,211.4,14.99304661]
[1738511224679,0.03524264,211.5,211.46,0.03630656]
[1738511225781,0.03524264,211.5,211.46,4.76690656]
[1738511226086,0.03524264,211.5,211.46,0.03630656]
[1738511226384,0.03524264,211.5,211.46,4.76680656]
[1738511226986,0.03524264,211.5,211.46,0.03630656]
[1738511227786,0.00070377,211.5,211.48,4.7301]
[1738511228283,1.4987,211.62,211.49,4.7299]
[1738511228486,1.4987,211.62,211.48,16.45954661]
[1738511228686,1.528,211.68,211.52,14.99304661]
[1738511228887,4.7267,211.64,211.53,4.7289]
[1738511229086,14.99304661,211.65,211.48,16.45954661]
[1738511229387,4.7268,211.64,211.54,4.7288]
[1738511229586,0.03309738,211.59,211.54,0.03020093]
[1738511229986,4.728,211.58,211.49,4.7298]
[1738511230179,0.03309738,211.59,211.54,0.03567677]
[1738511231988,3.28,211.69,211.54,0.03567677]
[1738511232189,1.4965,211.7,211.54,0.03567677]
[1738511232384,1.4965,211.7,211.56,14.99304661]
[1738511232587,3.26,211.73,211.57,1.4222]
[1738511232992,4.7258,211.68,211.6,4.7274]
[1738511233196,0.03143593,211.67,211.62,0.0354075]
[1738511234891,0.03143593,211.67,211.62,4.7624075]
[1738511235095,0.03143593,211.67,211.62,0.0354075]
[1738511237087,4.7264,211.65,211.62,0.0354075]
[1738511237290,0.03143593,211.67,211.62,0.0354075]
[1738511238795,0.00062973,211.67,211.62,0.0354075]
[1738511239190,4.72682973,211.67,211.62,0.0354075]
[1738511239386,0.00062973,211.67,211.62,0.0354075]
[1738511239893,14.99367634,211.67,211.62,0.0354075]
[1738511240396,4.7268,211.63,211.62,0.0354075]
[1738511240696,3.26,211.66,211.62,0.0354075]
[1738511240997,4.7267,211.64,211.62,0.0354075]
[1738511241395,3.26,211.66,211.62,0.0354075]
[1738511241691,4.7268,211.63,211.62,0.0354075]
[1738511248492,0.00062973,211.67,211.62,0.0354075]
[1738511248891,14.99304661,211.8,211.64,14.99304661]
[1738511249091,4.7239,211.77,211.64,14.99304661]
[1738511249291,1.4707,211.84,211.64,14.99304661]
[1738511249497,4.7257,211.69,211.61,4.4971]
[1738511249697,14.99304661,211.77,211.61,4.4971]
[1738511250099,4.7252,211.71,211.67,0.03495361]
[1738511250399,3.26,211.75,211.67,0.03495361]
[1738511250605,14.99304661,211.73,211.67,0.03495361]
[1738511250799,4.7255,211.69,211.67,0.03495361]
[1738511251000,4.7255,211.69,211.67,5.361e-05]
[1738511251404,4.7251,211.71,211.67,5.361e-05]
[1738511251903,4.7248,211.72,211.67,5.361e-05]
[1738511252107,0.03400882,211.71,211.67,5.361e-05]
[1738511253304,4.7255,211.69,211.67,5.361e-05]
[1738511254407,4.7257,211.68,211.67,5.361e-05]
[1738511255606,0.03400882,211.71,211.67,5.361e-05]
[1738511256510,4.7255,211.69,211.67,5.361e-05]
[1738511258214,4.75900882,211.71,211.67,5.361e-05]
[1738511258411,0.03400882,211.71,211.67,5.361e-05]
[1738511260310,4.75910882,211.71,211.67,5.361e-05]
[1738511263613,4.7253,211.7,211.67,5.361e-05]
[1738511264911,0.03400882,211.71,211.67,5.361e-05]
[1738511265511,4.7257,211.68,211.67,5.361e-05]
[1738511265916,0.03400882,211.71,211.67,5.361e-05]
[1738511266609,2.8742,211.85,211.69,4.7253]
[1738511266813,3.24,211.84,211.69,4.7253]
[1738511267316,4.7233,211.79,211.7,4.7252]
[1738511267516,3.24,211.84,211.66,1.5215]
[1738511267713,3.24,211.84,211.7,0.03621284]
[1738511267908,4.7231,211.8,211.66,1.5215]
[1738511268113,4.7231,211.8,211.75,0.03263258]
[1738511268309,14.99304661,211.86,211.75,0.03263258]
[1738511268513,4.7223,211.84,211.75,0.03263258]
[1738511268716,18.23304661,211.86,211.75,0.03263258]
[1738511269816,32.41304661,211.86,211.75,0.03263258]
[1738511270119,1.4031,211.85,211.75,0.03263258]
[1738511270816,4.7238,211.77,211.75,0.03263258]
[1738511272720,4.7231,211.8,211.75,0.03263258]
[1738511272921,3.24,211.83,211.75,0.03263258]
[1738511273316,1.4625,211.84,211.75,0.03263258]
[1738511273519,4.6825,211.84,211.75,0.03263258]
[1738511273822,4.7231,211.8,211.75,0.03263258]
[1738511274015,4.6825,211.84,211.75,0.03263258]
[1738511274315,4.7229,211.81,211.75,0.03263258]
[1738511274822,4.7226,211.83,211.75,0.03263258]
[1738511275317,4.7222,211.84,211.75,4.75673258]
[1738511275521,4.7222,211.84,211.66,2.9411]
[1738511275824,3.22,211.87,211.77,0.03060309]
[1738511276121,4.7215,211.88,211.77,0.03060309]
[1738511276322,1.5492,211.9,211.76,14.99304661]
[1738511276616,1.5492,211.9,211.8,0.03147974]
[1738511276818,1.5492,211.9,211.81,4.7227]
[1738511277023,1.5492,211.9,211.8,0.03147974]
[1738511278717,6.2702,211.9,211.8,4.75447974]
[1738511278923,1.5492,211.9,211.8,4.75447974]
[1738511279518,1.5492,211.9,211.8,0.03147974]
[1738511279720,4.7211,211.89,211.8,0.03147974]
[1738511280021,16.54224661,211.9,211.8,0.03147974]
[1738511280221,4.7215,211.87,211.8,0.03147974]
[1738511280422,1.5492,211.9,211.8,0.03147974]
[1738511280823,4.7212,211.89,211.8,4.75447974]
[1738511281123,3.22,211.92,211.8,0.03147974]
[1738511281420,4.7215,211.87,211.8,0.03147974]
[1738511281626,14.99304661,211.9,211.8,0.03147974]
[1738511282023,4.7226,211.83,211.8,0.03147974]
[1738511282227,14.99304661,211.9,211.8,0.03147974]
[1738511282828,4.7228,211.81,211.8,0.03147974]
[1738511283627,3.22,211.81,211.68,14.99304661]
[1738511284423,3.22,211.81,211.69,4.7254]
[1738511284626,0.03083148,211.77,211.72,0.03235843]
[1738511288933,0.03083148,211.77,211.72,4.75715843]
[1738511289832,0.03083148,211.77,211.72,0.03235843]
[1738511290633,16.53144661,211.9,211.72,0.03235843]
[1738511290836,4.7224,211.84,211.76,4.7239]
[1738511291431,4.6789,211.91,211.77,1.5273]
[1738511291734,4.6789,211.91,211.78,1.4177]
[1738511291934,4.7213,211.88,211.82,0.03467465]
[1738511292134,3.2,211.91,211.82,0.03467465]
[1738511292531,14.99304661,211.94,211.82,0.03467465]
[1738511292735,18.19304661,211.94,211.82,0.03467465]
[1738511294233,32.37304661,211.94,211.82,0.03467465]
[1738511294538,4.7224,211.83,211.82,0.03467465]
[1738511296442,14.99304661,211.87,211.82,0.03467465]
[1738511296741,3.2,211.92,211.82,0.03467465]
[1738511296941,14.99304661,211.94,211.82,0.03467465]
[1738511297336,4.7205,211.92,211.83,4.7223]
[1738511297736,4.7205,211.92,211.85,0.03407591]
[1738511298842,4.7207,211.91,211.85,0.03407591]
[1738511299042,3.2,211.97,211.85,0.03407591]
[1738511299542,14.99304661,211.94,211.85,0.03407591]
[1738511300439,4.7217,211.86,211.85,0.03407591]
[1738511302033,14.99304661,211.94,211.85,0.03407591]
[1738511302238,4.7215,211.87,211.85,0.03407591]
[1738511302538,14.99304661,211.94,211.85,0.03407591]
[1738511302736,4.721,211.9,211.85,0.03407591]
[1738511302934,3.2,211.93,211.85,0.03407591]
[1738511303338,18.19304661,211.94,211.85,0.03407591]
[1738511304342,4.7209,211.9,211.85,0.03407591]
[1738511304544,18.19304661,211.94,211.85,0.03407591]
[1738511308549,3.2,211.97,211.85,0.03407591]
[1738511308751,3.2,211.97,211.79,14.99304661]
[1738511308940,14.99304661,211.98,211.89,0.03116591]
[1738511309145,18.19304661,211.98,211.89,0.03116591]
[1738511309848,4.7201,211.94,211.89,0.03116591]
[1738511310249,18.19304661,211.98,211.89,0.03116591]
[1738511310449,14.99304661,211.98,211.89,0.03116591]
[1738511310849,4.7195,211.97,211.89,0.03116591]
[1738511311146,1.4604,211.99,211.89,0.03116591]